[Event "4th Memorial Warakomska-B 2020"]
[Site "Suwalki"]
[Date "2020.08.12"]
[Round "8.8"]
[White "Czech, Mieczyslaw"]
[Black "Ciszewski, Krzysztof"]
[Result "1-0"]
[ECO "A49"]
[WhiteElo "1863"]
[BlackElo "1728"]
[Annotator "NA"]
[PlyCount "73"]
[EventDate "2020.08.06"]
[EventType "swiss"]
[EventCountry "POL"]
[SourceTitle "playchess.com"]
[Source "ChessBase"]
[SourceQuality "1"]
[TimeControl "40/5400+30:1800+30"]

1. d4 {[%emt 0:00:00]} Nf6 {[%emt 0:00:00]} 2. Nf3 {[%emt 0:00:39]} g6 {[%emt 0:00:00]} 3. g3 {[%emt 0:00:27]} Bg7 {[%emt 0:00:09]} 4. Bg2 {[%emt 0:00:10]} O-O {[%emt 0:00:14]} 5. O-O {[%emt 0:00:12]} d6 {[%emt 0:00:15]} 6. c4 {[%emt 0:02:20]} Nc6 {[%emt 0:00:53]} 7. Nc3 {[%emt 0:00:51]} Rb8 {[%emt 0:00:10]} 8. h3 $14 {[%emt 0:01:44]} e5 {[%emt 0:06:50]} 9. dxe5 {[%emt 0:05:27]} Nxe5 {[%emt 0:01:24]} 10. Nxe5 {[%emt 0:00:30]} dxe5 {[%emt 0:00:03]} 11. e4 {[%emt 0:03:31]} Be6 {[%emt 0:01:15]} 12. b3 {[%emt 0:01:08]} c6 {[%emt 0:00:28]} 13. Be3 {[%emt 0:01:05]} Qc7 {[%emt 0:02:36]} 14. Qc2 {[%emt 0:00:23]} Rbd8 {[%emt 0:01:33]} 15. Rad1 {[%emt 0:00:17]} b6 {[%emt 0:07:42]} 16. Kh2 {[%emt 0:00:33]} h5 {[%emt 0:05:49]} 17. Ne2 {[%emt 0:02:49]} h4 {[%emt 0:02:29]} 18. gxh4 {[%emt 0:03:24]} Nh5 {[%emt 0:03:34]} 19. Bf3 {[%emt 0:04:39]} Nf4 {[%emt 0:03:33]} 20. Bxf4 {[%emt 0:04:18]} exf4 {[%emt 0:00:29]} 21. h5 {[%emt 0:03:10]} g5 {[%emt 0:04:20]} 22. Rxd8 {[%emt 0:04:48]} Rxd8 {[%emt 0:01:01]} 23. Rd1 {[%emt 0:00:14]} Rf8 {[%emt 0:16:53]} 24. Nd4 {[%emt 0:02:40]} Bxd4 {[%emt 0:02:03]} 25. Rxd4 {[%emt 0:00:11]} Qc8 {[%emt 0:00:38]} 26. Bg2 {[%emt 0:07:58]} f3 {[%emt 0:13:45]} 27. Bxf3 {[%emt 0:00:50]} Bxh3 {[%emt 0:00:41]} 28. Qd2 {[%emt 0:02:02]} f6 {[%emt 0:01:30]} 29. e5 {[%emt 0:07:34]} c5 {[%emt 0:08:04]} 30. Rd6 {[%emt 0:09:19]} Bf1 {[%emt 0:09:00]} 31. exf6 {[%emt 0:09:03]} Qh3+ {[%emt 0:03:23]} 32. Kg1 {[%emt 0:00:05]} Kh7 {[%emt 0:01:32]} 33. Rd7+ {[%emt 0:02:52]} Kh6 {[%emt 0:00:56]} 34. Rg7 {[%emt 0:00:48]} Qf5 {[%emt 0:01:26]} 35. Rg6+ {[%emt 0:01:26]} Kh7 {[%emt 0:00:31]} 36. Kxf1 {[%emt 0:00:36]} Qxf3 {[%emt 0:01:21]} 37. Qd7+ {[%emt 0:00:21]} 1-0

[Event "4th Memorial Warakomska-B 2020"]
[Site "Suwalki"]
[Date "2020.08.12"]
[Round "8.9"]
[White "Wasik, Jozef"]
[Black "Milewski, Karol"]
[Result "0-1"]
[ECO "A16"]
[WhiteElo "1646"]
[BlackElo "1795"]
[Annotator "NA"]
[PlyCount "67"]
[EventDate "2020.08.06"]
[EventType "swiss"]
[EventCountry "POL"]
[SourceTitle "playchess.com"]
[Source "ChessBase"]
[SourceQuality "1"]
[TimeControl "40/5400+30:1800+30"]

1. c4 {[%emt 0:10:17]} Nf6 {[%emt 0:00:00]} 2. Nc3 {[%emt 0:00:12]} g6 {[%emt 0:00:05]} 3. Nf3 {[%emt 0:00:38]} Bg7 {[%emt 0:00:09]} 4. g3 {[%emt 0:00:30]} O-O {[%emt 0:00:08]} 5. Bg2 {[%emt 0:00:08]} d6 {[%emt 0:00:11]} 6. O-O {[%emt 0:00:13]} Nc6 {[%emt 0:01:31]} 7. d3 {[%emt 0:00:50]} e5 {[%emt 0:01:37]} 8. Rb1 {[%emt 0:00:42]} h6 {[%emt 0:04:59]} 9. b4 {[%emt 0:00:23]} Ne8 {[%emt 0:01:40]} 10. b5 {[%emt 0:02:11]} Ne7 {[%emt 0:00:20]} 11. Nd5 {[%emt 0:09:10]} f5 {[%emt 0:06:05]} 12. a4 {[%emt 0:02:17]} Nxd5 {[%emt 0:16:55]} 13. cxd5 {[%emt 0:01:29]} g5 {[%emt 0:02:21]} 14. Bb2 {[%emt 0:05:00]} Nf6 {[%emt 0:09:14]} 15. Nd2 {[%emt 0:03:02]} Bd7 {[%emt 0:06:02]} 16. Qc2 {[%emt 0:09:36]} Rc8 {[%emt 0:10:27]} 17. Ba3 {[%emt 0:04:01]} Qe8 {[%emt 0:03:15]} 18. Rfe1 {[%emt 0:07:01]} Qh5 {[%emt 0:01:52]} 19. a5 {[%emt 0:10:46]} f4 {[%emt 0:05:50]} 20. Qb3 {[%emt 0:08:07]} Ng4 {[%emt 0:04:41]} 21. Nf3 {[%emt 0:03:40]} fxg3 {[%emt 0:08:46]} 22. hxg3 {[%emt 0:02:15]} Rf7 {[%emt 0:08:22]} 23. b6 {[%emt 0:01:34]} axb6 {[%emt 0:03:01]} 24. axb6 {[%emt 0:00:20]} Rcf8 {[%emt 0:00:20]} 25. bxc7 {[%emt 0:03:47]} Rxf3 {[%emt 0:02:58]} 26. exf3 {[%emt 0:00:27]} Rxf3 {[%emt 0:00:42]} 27. Re2 {[%emt 0:01:30]} Qh2+ {[%emt 0:00:45]} 28. Kf1 {[%emt 0:00:15]} Qxg3 {[%emt 0:00:53]} 29. Bxf3 {[%emt 0:00:33]} Nh2+ {[%emt 0:00:33]} 30. Ke1 {[%emt 0:00:20]} Qg1+ {[%emt 0:00:39]} 31. Kd2 {[%emt 0:00:13]} Nxf3+ {[%emt 0:00:01]} 32. Ke3 {[%emt 0:02:53]} Qg4 {[%emt 0:00:31]} 33. Qb4 {[%emt 0:00:23]} Nd4 {[%emt 0:00:14]} 34. Qxd4 0-1

[Event "4th Memorial Warakomska-B 2020"]
[Site "Suwalki"]
[Date "2020.08.12"]
[Round "8.10"]
[White "Stefaniuk, Zbigniew"]
[Black "Borowik, Wojciech"]
[Result "0-1"]
[ECO "B20"]
[WhiteElo "1538"]
[BlackElo "1769"]
[Annotator "NA"]
[PlyCount "206"]
[EventDate "2020.08.06"]
[EventType "swiss"]
[EventCountry "POL"]
[SourceTitle "playchess.com"]
[Source "ChessBase"]
[SourceQuality "1"]
[TimeControl "40/5400+30:1800+30"]

1. e4 {[%emt 0:00:00]} c5 {[%emt 0:00:00]} 2. Ne2 {[%emt 0:00:08]} d6 {[%emt 0:00:03]} 3. g3 {[%emt 0:00:59]} Nc6 {[%emt 0:00:41]} 4. Bg2 {[%emt 0:01:53]} g6 {[%emt 0:01:13]} 5. c3 {[%emt 0:02:37]} Bg7 {[%emt 0:04:10]} 6. d4 {[%emt 0:02:34]} cxd4 {[%emt 0:02:20]} 7. cxd4 {[%emt 0:00:34]} Bg4 {[%emt 0:00:42]} 8. f3 {[%emt 0:03:08]} Bd7 {[%emt 0:00:06]} 9. Nbc3 {[%emt 0:06:55]} Nf6 {[%emt 0:08:30]} 10. O-O {[%emt 0:08:52]} O-O {[%emt 0:08:55]} 11. Be3 {[%emt 0:05:32]} a6 {[%emt 0:01:57]} 12. a3 {[%emt 0:17:51]} b5 {[%emt 0:07:10]} 13. b4 {[%emt 0:04:07]} e5 {[%emt 0:07:12]} 14. dxe5 {[%emt 0:10:52]} dxe5 {[%emt 0:04:34]} 15. Qd2 {[%emt 0:03:47]} Be6 {[%emt 0:06:33]} 16. Rfd1 {[%emt 0:05:00]} Qc8 {[%emt 0:05:06]} 17. Rac1 {[%emt 0:06:07]} Bc4 {[%emt 0:07:21]} 18. Nd5 {[%emt 0:07:56]} Rd8 {[%emt 0:10:10]} 19. Bb6 {[%emt 0:06:40]} Rxd5 {[%emt 0:08:04]} 20. exd5 {[%emt 0:00:39]} Nxd5 {[%emt 0:00:08]} 21. Rxc4 {[%emt 0:01:49]} Nxb6 {[%emt 0:01:04]} 22. Rcc1 {[%emt 0:01:20]} Qe8 {[%emt 0:02:42]} 23. Bh3 {[%emt 0:00:49]} f5 {[%emt 0:04:17]} 24. Qa2+ {[%emt 0:00:25]} Kh8 {[%emt 0:02:45]} 25. Bf1 {[%emt 0:01:03]} e4 {[%emt 0:04:55]} 26. f4 {[%emt 0:00:32]} Nc4 {[%emt 0:00:41]} 27. Rxc4 {[%emt 0:00:35]} bxc4 {[%emt 0:00:05]} 28. Qxc4 {[%emt 0:00:09]} Rc8 {[%emt 0:01:39]} 29. Qxa6 {[%emt 0:00:42]} Ra8 {[%emt 0:00:38]} 30. Qb5 {[%emt 0:00:32]} Qe6 {[%emt 0:00:36]} 31. Qd5 {[%emt 0:00:42]} Qxd5 {[%emt 0:00:37]} 32. Rxd5 {[%emt 0:00:02]} Rxa3 {[%emt 0:00:30]} 33. b5 {[%emt 0:00:43]} Ra5 {[%emt 0:00:29]} 34. Rc5 {[%emt 0:00:38]} Bd4+ {[%emt 0:00:27]} 35. Nxd4 {[%emt 0:00:12]} Nxd4 {[%emt 0:00:02]} 36. Rc8+ {[%emt 0:00:21]} Kg7 {[%emt 0:00:01]} 37. Rc7+ {[%emt 0:00:32]} Kf6 {[%emt 0:01:21]} 38. Rxh7 {[%emt 0:00:40]} Nxb5 {[%emt 0:00:02]} 39. Bxb5 {[%emt 0:00:30]} Rxb5 {[%emt 0:00:01]} 40. Kf2 {[%emt 0:00:00]} Rb3 {[%emt 0:00:00]} 41. Ke2 {[%emt 0:02:26]} Ke6 {[%emt 0:05:52]} 42. Kf2 {[%emt 0:01:45]} Rb2+ {[%emt 0:07:08]} 43. Ke3 {[%emt 0:01:40]} Rb3+ {[%emt 0:00:55]} 44. Kf2 {[%emt 0:00:19]} Ra3 {[%emt 0:02:54]} 45. Ke2 {[%emt 0:01:01]} Kf6 {[%emt 0:07:39]} 46. Kf2 {[%emt 0:00:15]} Ke6 {[%emt 0:02:08]} 47. Ke2 {[%emt 0:00:36]} Ra6 {[%emt 0:00:36]} 48. Ke3 {[%emt 0:01:28]} Ra2 {[%emt 0:00:30]} 49. Rg7 {[%emt 0:03:59]} Kf6 {[%emt 0:01:26]} 50. Rh7 {[%emt 0:01:40]} Rg2 {[%emt 0:01:05]} 51. Rh8 {[%emt 0:05:31]} Kg7 {[%emt 0:00:09]} 52. Rh4 {[%emt 0:00:26]} Ra2 {[%emt 0:00:35]} 53. Rh3 {[%emt 0:03:56]} g5 {[%emt 0:04:33]} 54. fxg5 {[%emt 0:00:59]} Kg6 {[%emt 0:00:07]} 55. Rh8 {[%emt 0:01:06]} Kxg5 {[%emt 0:00:30]} 56. Rg8+ {[%emt 0:01:01]} Kf6 {[%emt 0:00:19]} 57. Rf8+ {[%emt 0:00:42]} Kg6 {[%emt 0:00:13]} 58. g4 {[%emt 0:02:32]} Ra3+ {[%emt 0:02:08]} 59. Ke2 {[%emt 0:00:41]} fxg4 {[%emt 0:00:42]} 60. Rf4 {[%emt 0:01:21]} Kg5 {[%emt 0:00:17]} 61. Rxe4 {[%emt 0:00:50]} Ra2+ {[%emt 0:00:07]} 62. Kf1 {[%emt 0:01:55]} Rxh2 {[%emt 0:00:07]} 63. Re8 {[%emt 0:01:48]} Ra2 {[%emt 0:01:44]} 64. Kg1 {[%emt 0:01:15]} Kf4 {[%emt 0:00:56]} 65. Kf1 {[%emt 0:01:06]} Kf3 {[%emt 0:00:39]} 66. Rf8+ {[%emt 0:00:58]} Kg3 {[%emt 0:00:08]} 67. Rg8 {[%emt 0:01:35]} Ra4 {[%emt 0:00:55]} 68. Rg7 {[%emt 0:00:32]} Rf4+ {[%emt 0:00:54]} 69. Kg1 {[%emt 0:00:48]} Rc4 {[%emt 0:00:41]} 70. Kf1 {[%emt 0:00:35]} Kf3 {[%emt 0:00:12]} 71. Rf7+ {[%emt 0:00:10]} Kg3 {[%emt 0:00:05]} 72. Rg7 {[%emt 0:00:15]} Rf4+ {[%emt 0:00:45]} 73. Kg1 {[%emt 0:00:18]} Kf3 {[%emt 0:00:24]} 74. Rg8 {[%emt 0:00:41]} Rf7 {[%emt 0:00:28]} 75. Rg6 {[%emt 0:00:48]} Kg3 {[%emt 0:00:30]} 76. Rg8 {[%emt 0:00:51]} Rb7 {[%emt 0:00:15]} 77. Kf1 {[%emt 0:00:30]} Rb1+ {[%emt 0:00:30]} 78. Ke2 {[%emt 0:00:08]} Rh1 {[%emt 0:00:58]} 79. Rg7 {[%emt 0:00:57]} Rh4 {[%emt 0:01:00]} 80. Kf1 {[%emt 0:00:45]} Kh2 {[%emt 0:00:24]} 81. Kf2 {[%emt 0:00:47]} Kh3 {[%emt 0:00:21]} 82. Rg6 {[%emt 0:00:26]} Rh8 {[%emt 0:00:20]} 83. Rg7 {[%emt 0:00:36]} Rf8+ {[%emt 0:00:36]} 84. Kg1 {[%emt 0:00:17]} Rc8 {[%emt 0:00:23]} 85. Kf2 {[%emt 0:00:36]} Rc2+ {[%emt 0:00:13]} 86. Kg1 {[%emt 0:00:28]} Kg3 {[%emt 0:00:28]} 87. Kf1 {[%emt 0:00:43]} Rc5 {[%emt 0:00:28]} 88. Rg6 {[%emt 0:00:38]} Rf5+ {[%emt 0:00:22]} 89. Kg1 {[%emt 0:00:13]} Kf3 {[%emt 0:00:59]} 90. Rg7 {[%emt 0:00:30]} Ra5 {[%emt 0:00:20]} 91. Rf7+ {[%emt 0:00:09]} Kg3 {[%emt 0:00:07]} 92. Kf1 {[%emt 0:00:33]} Ra1+ {[%emt 0:00:20]} 93. Ke2 {[%emt 0:00:11]} Kg2 {[%emt 0:00:16]} 94. Rg7 {[%emt 0:01:33]} g3 {[%emt 0:00:08]} 95. Ke3 {[%emt 0:00:14]} Re1+ {[%emt 0:00:36]} 96. Kf4 {[%emt 0:00:40]} Rf1+ {[%emt 0:00:09]} 97. Kg4 {[%emt 0:00:36]} Rb1 {[%emt 0:01:00]} 98. Kf4 {[%emt 0:00:27]} Kf2 {[%emt 0:00:33]} 99. Ke4 {[%emt 0:00:39]} Rb4+ {[%emt 0:00:31]} 100. Kd3 {[%emt 0:00:21]} g2 {[%emt 0:00:37]} 101. Rf7+ {[%emt 0:00:22]} Kg3 {[%emt 0:00:08]} 102. Ke2 {[%emt 0:00:32]} g1=Q {[%emt 0:00:15]} 103. Rg7+ {[%emt 0:00:03]} Rg4 {[%emt 0:00:07]} 0-1

[Event "4th Memorial Warakomska-B 2020"]
[Site "Suwalki"]
[Date "2020.08.12"]
[Round "8.11"]
[White "Kotarski, Bartosz"]
[Black "Kasperczyk, Szymon"]
[Result "1-0"]
[ECO "B33"]
[WhiteElo "1742"]
[BlackElo "1711"]
[Annotator "NA"]
[PlyCount "85"]
[EventDate "2020.08.06"]
[EventType "swiss"]
[EventCountry "POL"]
[SourceTitle "playchess.com"]
[Source "ChessBase"]
[SourceQuality "1"]
[TimeControl "40/5400+30:1800+30"]

1. e4 {[%emt 0:00:00]} c5 {[%emt 0:00:00]} 2. Nf3 {[%emt 0:00:00]} Nc6 {[%emt 0:00:04]} 3. d4 {[%emt 0:00:00]} cxd4 {[%emt 0:00:16]} 4. Nxd4 {[%emt 0:00:00]} Nf6 {[%emt 0:00:22]} 5. Nc3 {[%emt 0:00:00]} a6 {[%emt 0:00:14]} 6. Bc4 {[%emt 0:00:46]} e6 {[%emt 0:01:15]} 7. Nxc6 {[%emt 0:04:29]} bxc6 {[%emt 0:00:14]} 8. e5 {[%emt 0:00:12]} Nd5 {[%emt 0:00:33]} 9. Ne4 {[%emt 0:00:31]} d6 {[%emt 0:06:47]} 10. exd6 {[%emt 0:05:56]} Bxd6 {[%emt 0:00:13]} 11. O-O {[%emt 0:00:14]} Bxh2+ {[%emt 0:00:56]} 12. Kxh2 {[%emt 0:00:03]} Qh4+ {[%emt 0:00:13]} 13. Kg1 {[%emt 0:00:02]} Qxe4 {[%emt 0:00:12]} 14. Bd3 {[%emt 0:02:37]} Qh4 {[%emt 0:03:08]} 15. g3 {[%emt 0:10:48]} Qf6 {[%emt 0:09:54]} 16. c4 {[%emt 0:01:23]} Ne7 {[%emt 0:01:25]} 17. Kg2 {[%emt 0:05:22]} c5 {[%emt 0:14:40]} 18. Be4 {[%emt 0:01:27]} Ra7 {[%emt 0:01:19]} 19. Bf4 {[%emt 0:07:49]} Qd4 {[%emt 0:09:36]} 20. Qxd4 {[%emt 0:00:23]} cxd4 {[%emt 0:00:05]} 21. Be5 {[%emt 0:00:06]} f5 {[%emt 0:16:17]} 22. Bf3 {[%emt 0:00:24]} Ng6 {[%emt 0:01:44]} 23. Bxd4 {[%emt 0:00:22]} Rc7 {[%emt 0:02:00]} 24. Rac1 {[%emt 0:03:24]} Bb7 {[%emt 0:02:13]} 25. b4 {[%emt 0:02:27]} Bxf3+ {[%emt 0:03:10]} 26. Kxf3 {[%emt 0:00:01]} e5 {[%emt 0:00:18]} 27. Rfe1 {[%emt 0:03:41]} Re7 {[%emt 0:05:37]} 28. Bc5 {[%emt 0:02:00]} Re6 {[%emt 0:00:47]} 29. b5 {[%emt 0:01:09]} e4+ {[%emt 0:00:34]} 30. Ke3 {[%emt 0:00:43]} Ne5 {[%emt 0:01:00]} 31. b6 {[%emt 0:01:03]} Nd3 {[%emt 0:00:44]} 32. b7 {[%emt 0:00:18]} Kd7 {[%emt 0:07:27]} 33. Ba7 {[%emt 0:00:08]} Ree8 {[%emt 0:02:23]} 34. Red1 {[%emt 0:00:38]} Kc7 {[%emt 0:01:34]} 35. Rb1 {[%emt 0:00:18]} Rb8 {[%emt 0:01:34]} 36. Bxb8+ {[%emt 0:00:15]} Rxb8 {[%emt 0:00:37]} 37. Rh1 {[%emt 0:00:13]} Ne5 {[%emt 0:03:38]} 38. Rxh7 {[%emt 0:00:38]} Nxc4+ {[%emt 0:00:52]} 39. Ke2 {[%emt 0:00:10]} Nd6 {[%emt 0:01:04]} 40. Rxg7+ {[%emt 0:00:00]} Kc6 {[%emt 0:00:00]} 41. Rg6 {[%emt 0:00:27]} Kc5 {[%emt 0:02:00]} 42. Ke3 {[%emt 0:03:54]} Nb5 {[%emt 0:01:55]} 43. Rxa6 {[%emt 0:00:27]} 1-0

[Event "4th Memorial Warakomska-B 2020"]
[Site "Suwalki"]
[Date "2020.08.12"]
[Round "8.12"]
[White "Borowik, Karol"]
[Black "Milanowski, Jan"]
[Result "1/2-1/2"]
[ECO "D02"]
[WhiteElo "1426"]
[BlackElo "1787"]
[Annotator "NA"]
[PlyCount "115"]
[EventDate "2020.08.06"]
[EventType "swiss"]
[EventCountry "POL"]
[SourceTitle "playchess.com"]
[Source "ChessBase"]
[SourceQuality "1"]
[TimeControl "40/5400+30:1800+30"]

1. d4 {[%emt 0:00:00]} d5 {[%emt 0:00:00]} 2. Nf3 {[%emt 0:00:06]} Nf6 {[%emt 0:00:17]} 3. c3 {[%emt 0:01:17]} Bf5 {[%emt 0:00:50]} 4. Bf4 {[%emt 0:01:02]} e6 {[%emt 0:01:10]} 5. e3 {[%emt 0:02:04]} Nbd7 {[%emt 0:00:32]} 6. Bd3 {[%emt 0:03:21]} Ne4 {[%emt 0:01:52]} 7. Qc2 {[%emt 0:06:19]} Nd6 {[%emt 0:14:42]} 8. Nbd2 {[%emt 0:12:03]} Bxd3 {[%emt 0:00:52]} 9. Qxd3 {[%emt 0:00:02]} Be7 {[%emt 0:00:17]} 10. e4 {[%emt 0:09:25]} dxe4 {[%emt 0:00:22]} 11. Nxe4 {[%emt 0:00:20]} Nxe4 {[%emt 0:00:09]} 12. Qxe4 {[%emt 0:00:06]} c6 {[%emt 0:00:12]} 13. O-O {[%emt 0:03:02]} O-O {[%emt 0:00:48]} 14. Rfd1 {[%emt 0:05:13]} Nf6 {[%emt 0:00:23]} 15. Qe2 {[%emt 0:02:10]} Qa5 {[%emt 0:02:01]} 16. Ne5 {[%emt 0:03:27]} Rfd8 {[%emt 0:00:42]} 17. a4 {[%emt 0:03:22]} Qd5 {[%emt 0:11:16]} 18. Bg5 {[%emt 0:23:32]} Re8 {[%emt 0:09:12]} 19. Bxf6 {[%emt 0:06:11]} Bxf6 {[%emt 0:00:52]} 20. Ng4 {[%emt 0:01:34]} Be7 {[%emt 0:01:31]} 21. Ne5 {[%emt 0:02:21]} Rad8 {[%emt 0:02:36]} 22. b4 {[%emt 0:03:44]} f6 {[%emt 0:00:43]} 23. Nf3 {[%emt 0:00:27]} Bd6 {[%emt 0:00:50]} 24. c4 {[%emt 0:01:46]} Qh5 {[%emt 0:00:03]} 25. c5 {[%emt 0:00:04]} Bc7 {[%emt 0:00:10]} 26. Qc4 {[%emt 0:01:14]} g5 {[%emt 0:02:16]} 27. h3 {[%emt 0:03:30]} g4 {[%emt 0:00:47]} 28. hxg4 {[%emt 0:00:13]} Qxg4 {[%emt 0:00:02]} 29. Nh2 {[%emt 0:00:45]} Bxh2+ {[%emt 0:05:11]} 30. Kxh2 {[%emt 0:00:01]} Rd5 {[%emt 0:00:11]} 31. Rd3 {[%emt 0:02:02]} Qf4+ {[%emt 0:02:15]} 32. Kg1 {[%emt 0:00:42]} Kf7 {[%emt 0:01:44]} 33. Qc1 {[%emt 0:01:09]} Rxd4 {[%emt 0:00:33]} 34. Qxf4 {[%emt 0:00:06]} Rxf4 {[%emt 0:00:04]} 35. b5 {[%emt 0:01:18]} Rc4 {[%emt 0:00:29]} 36. Rh3 {[%emt 0:00:52]} Kg7 {[%emt 0:05:21]} 37. Rg3+ {[%emt 0:00:22]} Kf8 {[%emt 0:00:06]} 38. Rh3 {[%emt 0:00:06]} Re7 {[%emt 0:00:19]} 39. Rd1 {[%emt 0:00:07]} Ke8 {[%emt 0:00:23]} 40. bxc6 {[%emt 0:00:00]} bxc6 {[%emt 0:00:00]} 41. Rb1 {[%emt 0:00:14]} Rxc5 {[%emt 0:00:41]} 42. Rb8+ {[%emt 0:00:08]} Kd7 {[%emt 0:00:06]} 43. Rb7+ {[%emt 0:00:05]} Kd6 {[%emt 0:00:09]} 44. Rxe7 {[%emt 0:00:05]} Kxe7 {[%emt 0:00:07]} 45. Rxh7+ {[%emt 0:00:05]} Kd6 {[%emt 0:00:05]} 46. Rxa7 {[%emt 0:00:04]} Rc2 {[%emt 0:01:39]} 47. a5 {[%emt 0:01:08]} Ra2 {[%emt 0:01:51]} 48. a6 {[%emt 0:00:48]} e5 {[%emt 0:01:47]} 49. Ra8 {[%emt 0:01:37]} Kc7 {[%emt 0:03:16]} 50. a7 {[%emt 0:00:54]} Kb7 {[%emt 0:00:42]} 51. Rf8 {[%emt 0:00:10]} Kxa7 {[%emt 0:01:22]} 52. Rxf6 {[%emt 0:00:05]} Kb6 {[%emt 0:00:21]} 53. Re6 {[%emt 0:00:07]} Ra5 {[%emt 0:00:41]} 54. g4 {[%emt 0:02:38]} Kc7 {[%emt 0:00:12]} 55. g5 {[%emt 0:01:01]} Kd7 {[%emt 0:00:10]} 56. Rf6 {[%emt 0:00:30]} e4 {[%emt 0:00:45]} 57. g6 {[%emt 0:00:24]} Ke7 {[%emt 0:02:23]} 58. Rxc6 {[%emt 0:00:08]} 1/2-1/2

[Event "4th Memorial Warakomska-B 2020"]
[Site "Suwalki"]
[Date "2020.08.12"]
[Round "8.13"]
[White "Palejko, Maria"]
[Black "Siekanska, Zuzanna"]
[Result "0-1"]
[ECO "B83"]
[WhiteElo "1218"]
[BlackElo "1680"]
[Annotator "NA"]
[PlyCount "160"]
[EventDate "2020.08.06"]
[EventType "swiss"]
[EventCountry "POL"]
[SourceTitle "playchess.com"]
[Source "ChessBase"]
[SourceQuality "1"]
[TimeControl "40/5400+30:1800+30"]

1. e4 {[%emt 0:00:00]} c5 {[%emt 0:00:00]} 2. Nf3 {[%emt 0:00:00]} e6 {[%emt 0:00:00]} 3. d4 {[%emt 0:00:00]} cxd4 {[%emt 0:00:00]} 4. Nxd4 {[%emt 0:00:00]} Nf6 {[%emt 0:00:00]} 5. Nc3 {[%emt 0:00:08]} d6 {[%emt 0:00:06]} 6. Be2 {[%emt 0:00:23]} Be7 {[%emt 0:00:17]} 7. O-O {[%emt 0:00:19]} O-O {[%emt 0:00:04]} 8. Be3 {[%emt 0:01:10]} Nc6 {[%emt 0:02:52]} 9. Kh1 {[%emt 0:03:39]} a6 {[%emt 0:03:23]} 10. f4 {[%emt 0:03:23]} e5 {[%emt 0:00:19]} 11. fxe5 {[%emt 0:06:03]} dxe5 {[%emt 0:00:14]} 12. Nxc6 {[%emt 0:04:03]} bxc6 {[%emt 0:00:08]} 13. Bf3 {[%emt 0:03:00]} Rb8 {[%emt 0:02:02]} 14. b3 {[%emt 0:06:04]} Qa5 {[%emt 0:03:10]} 15. Ne2 {[%emt 0:02:30]} Rd8 {[%emt 0:00:41]} 16. Qe1 {[%emt 0:01:13]} Qxe1 {[%emt 0:00:34]} 17. Raxe1 {[%emt 0:00:38]} Bg4 {[%emt 0:03:21]} 18. Ng3 {[%emt 0:07:17]} a5 {[%emt 0:06:34]} 19. Bg5 {[%emt 0:09:36]} Bxf3 {[%emt 0:06:32]} 20. Rxf3 {[%emt 0:02:33]} Rd7 {[%emt 0:12:30]} 21. Nf5 {[%emt 0:05:01]} Bd8 {[%emt 0:09:28]} 22. c4 {[%emt 0:15:10]} Nxe4 {[%emt 0:07:36]} 23. Bxd8 {[%emt 0:00:14]} Rbxd8 {[%emt 0:00:16]} 24. h4 {[%emt 0:01:08]} Nd2 {[%emt 0:06:23]} 25. Rg3 {[%emt 0:02:32]} f6 {[%emt 0:00:24]} 26. c5 {[%emt 0:01:26]} a4 {[%emt 0:25:54]} 27. Nd6 {[%emt 0:02:42]} axb3 {[%emt 0:02:01]} 28. axb3 {[%emt 0:02:45]} Rb8 {[%emt 0:00:16]} 29. Rd3 {[%emt 0:02:52]} Rxb3 {[%emt 0:00:54]} 30. Rxd2 {[%emt 0:00:15]} Rc3 {[%emt 0:00:16]} 31. Ra2 {[%emt 0:00:37]} h6 {[%emt 0:00:22]} 32. Ne4 {[%emt 0:01:59]} Rc4 {[%emt 0:00:43]} 33. g3 {[%emt 0:05:18]} Rdd4 {[%emt 0:03:27]} 34. Nd2 {[%emt 0:06:58]} Rc3 {[%emt 0:00:11]} 35. Kh2 {[%emt 0:01:32]} Rcd3 {[%emt 0:02:18]} 36. Ne4 {[%emt 0:01:24]} Rc4 {[%emt 0:00:25]} 37. Ra8+ {[%emt 0:01:03]} Kh7 {[%emt 0:00:14]} 38. Ra7 {[%emt 0:00:53]} Kg6 {[%emt 0:01:36]} 39. Rc7 {[%emt 0:00:17]} Rdd4 {[%emt 0:00:39]} 40. Nd6 {[%emt 0:00:00]} Rxc5 {[%emt 0:00:00]} 41. Ne8 {[%emt 0:02:44]} Rc2+ {[%emt 0:04:31]} 42. Kh3 {[%emt 0:04:01]} Rdd2 {[%emt 0:02:18]} 43. Rxg7+ {[%emt 0:02:42]} Kf5 {[%emt 0:00:21]} 44. Rf1+ {[%emt 0:02:00]} Rf2 {[%emt 0:01:27]} 45. Rxf2+ {[%emt 0:03:21]} Rxf2 {[%emt 0:00:04]} 46. Rc7 {[%emt 0:09:28]} e4 {[%emt 0:05:41]} 47. Rxc6 {[%emt 0:04:03]} e3 {[%emt 0:00:22]} 48. g4+ {[%emt 0:04:25]} Ke4 {[%emt 0:02:33]} 49. Nxf6+ {[%emt 0:01:35]} Ke5 {[%emt 0:02:24]} 50. Nd7+ {[%emt 0:01:35]} Kd5 {[%emt 0:00:10]} 51. Rc1 {[%emt 0:00:23]} e2 {[%emt 0:01:15]} 52. Re1 {[%emt 0:01:06]} Ke4 {[%emt 0:01:12]} 53. Nc5+ {[%emt 0:00:33]} Ke3 {[%emt 0:00:10]} 54. Ra1 {[%emt 0:01:57]} Rf1 {[%emt 0:01:24]} 55. Ra3+ {[%emt 0:00:09]} Kd4 {[%emt 0:00:07]} 56. Ne6+ {[%emt 0:00:12]} Kd5 {[%emt 0:02:22]} 57. Nc7+ {[%emt 0:01:35]} Kc6 {[%emt 0:01:55]} 58. Rc3+ {[%emt 0:00:15]} Kd7 {[%emt 0:00:20]} 59. Re3 {[%emt 0:00:44]} Rf3+ {[%emt 0:01:36]} 60. Rxf3 {[%emt 0:00:04]} e1=Q {[%emt 0:00:10]} 61. Rf7+ {[%emt 0:00:26]} Kd6 {[%emt 0:00:04]} 62. Nb5+ {[%emt 0:00:36]} Kc5 {[%emt 0:01:52]} 63. Rf5+ {[%emt 0:00:20]} Kc4 {[%emt 0:00:09]} 64. Nd6+ {[%emt 0:00:16]} Kd4 {[%emt 0:00:58]} 65. Nb5+ {[%emt 0:00:46]} Kd3 {[%emt 0:00:31]} 66. Rf3+ {[%emt 0:00:42]} Ke4 {[%emt 0:00:32]} 67. Rc3 {[%emt 0:00:33]} Qf1+ {[%emt 0:00:25]} 68. Kg3 {[%emt 0:00:26]} Qxb5 {[%emt 0:00:06]} 69. Rf3 {[%emt 0:00:25]} Qe5+ {[%emt 0:00:47]} 70. Kg2 {[%emt 0:00:25]} Qe6 {[%emt 0:01:12]} 71. Rf5 {[%emt 0:00:50]} h5 {[%emt 0:00:33]} 72. Rg5 {[%emt 0:00:26]} hxg4 {[%emt 0:00:19]} 73. h5 {[%emt 0:00:21]} Kf4 {[%emt 0:00:23]} 74. Rg6 {[%emt 0:00:33]} Qd5+ {[%emt 0:00:24]} 75. Kh2 {[%emt 0:00:26]} Qxh5+ {[%emt 0:00:15]} 76. Kg1 {[%emt 0:00:15]} Qxg6 {[%emt 0:00:08]} 77. Kf1 {[%emt 0:00:11]} Ke3 {[%emt 0:00:24]} 78. Kg2 {[%emt 0:00:21]} Qh5 {[%emt 0:01:02]} 79. Kg1 {[%emt 0:00:09]} g3 {[%emt 0:00:29]} 80. Kf1 {[%emt 0:00:18]} Qh1# {[%emt 0:00:09]} 0-1